fUST/lending_fUST_20260410
["ID","MTS","AMOUNT","RATE_DAILY","PERIOD"]
[420200153,1775770240574,-635.58,0.00019178,18]
[420200154,1775770240588,-500.0,0.00019178,18]
[420200155,1775770240599,-503.22789834,0.00019178,18]
[420200156,1775770240608,-500.0,0.00019178,18]
[420200157,1775770240618,-500.0,0.00019178,18]
[420200158,1775770240627,-500.0,0.00019178,18]
[420200159,1775770240637,-500.0,0.00019178,18]
[420200160,1775770240661,-960.01,0.00019178,18]
[420200161,1775770240672,-500.0,0.00019178,18]
[420200162,1775770240691,-530.05169988,0.00019178,18]
[420200163,1775770240703,-607.23,0.00019178,18]
[420200164,1775770240715,-500.0,0.00019178,18]
[420200165,1775770240727,-500.0,0.00019178,18]
[420200166,1775770240740,-506.67317865,0.00019178,18]
[420200167,1775770240752,-974.07,0.00019178,18]
[420200168,1775770240763,-500.0,0.00019178,18]
[420200169,1775770240784,-1388.06,0.00019178,18]
[420200170,1775770240796,-500.0,0.00019178,18]
[420200171,1775770240827,-873.7,0.00019178,18]
[420200172,1775770240882,-500.0,0.00019178,18]
[420200173,1775770240920,-732.26,0.00019178,18]
[420200174,1775770240944,-500.0,0.00019178,18]
[420200175,1775770240959,-1881.8,0.00019178,18]
[420200176,1775770240992,-500.0,0.00019178,18]
[420200177,1775770241019,-500.0,0.00019178,18]
[420200178,1775770241053,-500.0,0.00019178,18]
[420200179,1775770241066,-1451.31,0.00019178,18]
[420200180,1775770241085,-315.58282903,0.00019178,2]
[420200181,1775770241122,-500.0,0.00019178,18]
[420200182,1775770241164,-2518.85,0.00019178,18]
[420200183,1775770241233,-500.0,0.00019178,18]
[420200184,1775770241245,-564.98,0.00019178,18]
[420200185,1775770241258,-505.46,0.00019178,18]
[420200186,1775770241270,-578.50490428,0.00019178,18]
[420200187,1775770241282,-512.02,0.00019178,18]
[420200188,1775770241293,-500.0,0.00019178,18]
[420200189,1775770241304,-500.0,0.00019178,18]
[420200190,1775770241315,-500.0,0.00019178,18]
[420200191,1775770241326,-500.0,0.00019178,18]
[420200192,1775770241337,-500.0,0.00019178,18]
[420200193,1775770241349,-500.0,0.00019178,18]
[420200194,1775770241360,-500.0,0.00019178,18]
[420200195,1775770241372,-969.23,0.00019178,18]
[420200196,1775770241382,-500.0,0.00019178,18]
[420200197,1775770241394,-500.0,0.00019178,18]
[420200198,1775770241404,-1815.3,0.00019178,18]
[420200199,1775770241418,-887.81,0.00019178,18]
[420200200,1775770241430,-500.0,0.00019178,18]
[420200201,1775770241441,-1988.8,0.00019178,18]
[420200202,1775770241451,-3094.25,0.00019178,18]
[420200203,1775770241469,-3186.71,0.00019178,18]
[420200204,1775770241485,-500.0,0.00019178,18]
[420200205,1775770241496,-500.0,0.00019178,18]
[420200206,1775770241508,-500.0,0.00019178,18]
[420200207,1775770241526,-500.0,0.00019178,18]
[420200208,1775770241536,-681.33,0.00019178,18]
[420200209,1775770241552,-663.41,0.00019178,18]
[420200210,1775770241564,-500.0,0.00019178,18]
[420200211,1775770241576,-500.0,0.00019178,18]
[420200212,1775770241587,-500.0,0.00019178,18]
[420200213,1775770241602,-500.0,0.00019178,18]
[420200214,1775770241614,-500.0,0.00019178,18]
[420200215,1775770241627,-2960.77,0.00019178,18]
[420200216,1775770241643,-500.0,0.00019178,11]
[420200217,1775770241654,-500.0,0.00019178,18]
[420200218,1775770241665,-669.25,0.00019178,18]
[420200219,1775770241686,-2548.12,0.00019178,18]
[420200220,1775770241696,-157.37141933,0.00019178,18]
[420200221,1775770241708,-500.0,0.00019178,18]
[420200222,1775770241724,-500.0,0.00019178,18]
[420200223,1775770241752,-1260.46,0.00019178,18]
[420200224,1775770241766,-500.0,0.00019178,18]
[420200225,1775770241824,-2533.61,0.00019178,18]
[420200226,1775770241908,-846.82,0.00019178,18]
[420200227,1775770241920,-500.0,0.00019178,18]
[420200228,1775770241936,-7986.36,0.00019178,18]
[420200229,1775770241953,-500.0,0.00019178,18]
[420200230,1775770241964,-500.0,0.00019178,18]
[420200231,1775770241976,-500.0,0.00019178,18]
[420200232,1775770241990,-500.0,0.00019178,18]
[420200233,1775770242005,-1490.96,0.00019178,18]
[420200234,1775770242022,-500.0,0.00019178,18]
[420200235,1775770242033,-2331.33,0.00019178,18]
[420200236,1775770242047,-500.0,0.00019178,18]
[420200237,1775770242058,-630.91,0.00019178,18]
[420200238,1775770242068,-500.0,0.00019178,18]
[420200239,1775770242085,-500.0,0.00019178,18]
[420200240,1775770242096,-1538.91,0.00019178,18]
[420200241,1775770242111,-500.0,0.00019178,18]
[420200242,1775770242126,-7095.08,0.00019178,18]
[420200243,1775770242139,-500.0,0.00019178,18]
[420200244,1775770242157,-500.0,0.00019178,18]
[420200245,1775770242170,-2312.54,0.00019178,18]
[420200246,1775770242195,-500.0,0.00019178,18]
[420200247,1775770242260,-500.0,0.00019178,18]
[420200248,1775770242350,-2827.84,0.00019178,18]
[420200249,1775770242365,-500.0,0.00019178,18]
[420200250,1775770242384,-500.0,0.00019178,18]
[420200251,1775770242396,-500.0,0.00019178,18]
[420200252,1775770242408,-500.0,0.00019178,18]
[420200253,1775770242436,-500.0,0.00019178,18]
[420200254,1775770242447,-500.0,0.00019178,2]
[420200255,1775770242488,-500.0,0.00019178,18]
[420200256,1775770242504,-500.0,0.00019178,18]
[420200257,1775770242523,-774.91,0.00019178,18]
[420200258,1775770242533,-908.58,0.00019178,18]
[420200259,1775770242550,-2430.17,0.00019178,18]
[420200260,1775770242561,-500.0,0.00019178,18]
[420200261,1775770242577,-603.93,0.00019178,18]
[420200262,1775770242591,-500.0,0.00019178,18]
[420200263,1775770242601,-2939.37,0.00019178,18]
[420200264,1775770242615,-500.0,0.00019178,18]
[420200265,1775770242626,-500.0,0.00019178,18]
[420200266,1775770242650,-500.0,0.00019178,18]
[420200267,1775770242661,-500.0,0.00019178,18]
[420200268,1775770242686,-970.61,0.00019178,18]
[420200270,1775770242717,-2182.08,0.00019178,18]
[420200271,1775770242738,-500.0,0.00019178,18]
[420200272,1775770242755,-3110.56,0.00019178,18]
[420200275,1775770242769,-500.0,0.00019178,18]
[420200276,1775770242779,-500.0,0.00019178,18]
[420200277,1775770242804,-2440.37,0.00019178,18]
[420200278,1775770242831,-500.0,0.00019178,18]
[420200279,1775770242843,-634.47,0.00019178,18]
[420200280,1775770242857,-500.0,0.00019178,18]
[420200281,1775770242868,-559.26,0.00019178,18]
[420200282,1775770242883,-2637.48,0.00019178,18]
[420200283,1775770242894,-500.0,0.00019178,18]
[420200284,1775770242905,-836.31,0.00019178,18]
[420200285,1775770242919,-2173.5,0.00019178,18]
[420200287,1775770242929,-933.45,0.00019178,18]
[420200290,1775770242941,-500.0,0.00019178,18]
[420200292,1775770242952,-500.0,0.00019178,18]
[420200294,1775770242962,-500.0,0.00019178,2]
[420200296,1775770242973,-587.2,0.00019178,18]
[420200299,1775770242984,-812.18,0.00019178,18]
[420200301,1775770242996,-500.0,0.00019178,18]
[420200303,1775770243009,-500.0,0.00019178,18]
[420200304,1775770243020,-500.0,0.00019178,18]
[420200305,1775770243030,-251.6307242,0.00019178,2]
[420200306,1775770243045,-500.0,0.00019178,18]
[420200308,1775770243060,-512.515449,0.000192,2]
[420200311,1775770243071,-501.64937674,0.00019206,5]
[420200312,1775770243081,-2206.0,0.00019381,2]
[420200313,1775770243099,-644.0,0.00019381,2]
[420200314,1775770243109,-1407.0,0.00019381,2]
[420200315,1775770243120,-441.0,0.00019381,2]
[420200316,1775770243143,-738.0,0.00019381,2]
[420200317,1775770243165,-184.0,0.00019381,2]
[420200318,1775770243197,-307.0,0.00019427,7]
[420200319,1775770243215,-500.0,0.00019452,18]
[420200320,1775770243261,-500.0,0.00019452,18]
[420200321,1775770243287,-500.0,0.00019452,18]
[420200322,1775770243298,-500.0,0.00019452,18]
[420200323,1775770243322,-500.0,0.00019452,18]
[420200324,1775770243336,-500.0,0.00019452,18]
[420200325,1775770243356,-500.0,0.00019452,18]
[420200326,1775770243369,-878.52,0.00019452,18]
[420200327,1775770243380,-500.0,0.00019452,18]
[420200328,1775770243423,-574.77,0.00019452,18]
[420200330,1775770243446,-500.0,0.00019452,18]
[420200331,1775770243479,-563.09,0.00019452,18]
[420200332,1775770243533,-500.0,0.00019452,18]
[420200333,1775770243564,-500.0,0.00019452,18]
[420200334,1775770243576,-500.0,0.00019452,18]
[420200335,1775770243593,-500.0,0.00019452,18]
[420200336,1775770243610,-500.0,0.00019452,18]
[420200337,1775770243622,-500.0,0.00019452,18]
[420200338,1775770243637,-500.0,0.00019452,18]
[420200339,1775770243660,-546.12,0.00019452,18]
[420200340,1775770243684,-500.0,0.00019452,18]
[420200341,1775770243695,-516.14838871,0.00019452,18]
[420200342,1775770243711,-500.0,0.00019452,18]
[420200343,1775770243721,-500.0,0.00019452,18]
[420200344,1775770243743,-500.0,0.00019452,18]
[420200345,1775770243754,-500.0,0.00019452,18]
[420200346,1775770243773,-500.0,0.00019452,18]
[420200347,1775770243788,-996.65,0.00019452,18]
[420200348,1775770243799,-500.0,0.00019452,18]
[420200349,1775770243809,-500.0,0.00019452,18]
[420200350,1775770243825,-500.0,0.00019452,18]
[420200351,1775770243841,-500.0,0.00019452,18]
[420200352,1775770243863,-500.0,0.00019452,18]
[420200354,1775770243873,-500.0,0.00019452,18]
[420200356,1775770243891,-500.0,0.00019452,18]
[420200357,1775770243901,-500.0,0.00019452,18]
[420200358,1775770243934,-1881.67,0.00019452,18]
[420200359,1775770243945,-500.0,0.00019452,18]
[420200360,1775770243981,-722.33,0.00019452,18]
[420200361,1775770243991,-500.0,0.00019452,18]
[420200362,1775770244018,-1289.64,0.00019452,18]
[420200363,1775770244044,-500.0,0.00019452,18]
[420200364,1775770244068,-500.0,0.00019452,18]
[420200365,1775770244082,-500.0,0.00019452,18]
[420200366,1775770244105,-569.16,0.00019452,18]
[420200367,1775770244115,-1517.21,0.00019452,18]
[420200368,1775770244137,-547.77,0.00019452,18]
[420200369,1775770244147,-500.0,0.00019452,7]
[420200370,1775770244173,-500.0,0.00019452,18]
[420200371,1775770244183,-1727.32,0.00019452,18]
[420200372,1775770244197,-500.0,0.00019452,18]
[420200373,1775770244214,-500.0,0.00019452,18]
[420200374,1775770244228,-619.16,0.00019452,18]
[420200375,1775770244246,-500.0,0.00019452,18]
[420200376,1775770244256,-664.09,0.00019452,18]
[420200377,1775770244270,-559.65,0.00019452,18]
[420200378,1775770244279,-1035.57,0.00019452,18]
[420200379,1775770244289,-795.69,0.00019452,18]
[420200380,1775770244302,-500.0,0.00019452,18]
[420200381,1775770244311,-531.70805595,0.00019452,18]
[420200382,1775770244321,-500.0,0.00019452,18]
[420200383,1775770244337,-500.0,0.00019452,18]
[420200384,1775770244347,-1031.6,0.00019452,18]
[420200385,1775770244357,-500.0,0.00019452,18]
[420200386,1775770244367,-500.0,0.00019452,18]
[420200387,1775770244401,-500.0,0.00019452,18]
[420200388,1775770244416,-500.0,0.00019452,18]
[420200389,1775770244426,-500.0,0.00019452,18]
[420200390,1775770244437,-500.0,0.00019452,18]
[420200391,1775770244463,-500.0,0.00019452,18]
[420200392,1775770244473,-508.54,0.00019452,18]
[420200393,1775770244500,-2083.33,0.00019452,18]
[420200394,1775770244514,-1034.43,0.00019452,18]
[420200395,1775770244531,-500.0,0.00019452,18]
[420200396,1775770244571,-500.0,0.00019452,18]
[420200397,1775770244587,-500.0,0.00019452,18]
[420200398,1775770244655,-955.78,0.00019452,18]
[420200399,1775770244680,-2500.24,0.00019452,18]
[420200400,1775770244697,-670.57,0.00019452,18]
[420200401,1775770244726,-1230.91,0.00019452,18]
[420200402,1775770244747,-891.67,0.00019452,18]
[420200403,1775770244758,-500.0,0.00019452,18]
[420200404,1775770244775,-579.77,0.00019452,18]
[420200405,1775770244785,-500.0,0.00019452,18]
[420200406,1775770244801,-760.8,0.00019452,18]
[420200407,1775770244811,-500.0,0.00019452,18]
[420200408,1775770244821,-500.0,0.00019452,18]
[420200409,1775770244831,-500.0,0.00019452,10]
[420200410,1775770244841,-500.0,0.00019452,18]
[420200411,1775770244851,-500.0,0.00019452,18]
[420200412,1775770244863,-648.37,0.00019452,18]
[420200413,1775770244874,-1953.06,0.00019452,18]
[420200414,1775770244884,-613.83,0.00019452,18]
[420200415,1775770244894,-906.12,0.00019452,18]
[420200416,1775770244909,-1542.87,0.00019452,18]
[420200417,1775770244919,-806.83,0.00019452,18]
[420200418,1775770244935,-1845.1,0.00019452,18]
[420200419,1775770244945,-551.98,0.00019452,18]
[420200420,1775770244959,-500.0,0.00019452,18]
[420200421,1775770244969,-506.84,0.00019452,18]
[420200422,1775770244980,-1742.41,0.00019452,18]
[420200423,1775770244999,-500.0,0.00019452,18]
[420200424,1775770245009,-829.59,0.00019452,18]
[420200425,1775770245029,-897.59,0.00019452,18]
[420200426,1775770245039,-4290.4,0.00019452,18]
[420200427,1775770245065,-750.70538294,0.00019452,2]
[420200428,1775770245075,-500.0,0.00019452,18]
[420200429,1775770245091,-500.0,0.00019452,18]
[420200430,1775770245109,-500.0,0.00019452,18]
[420200431,1775770245119,-831.37,0.00019452,18]
[420200432,1775770245160,-3424.6,0.00019452,18]
[420200433,1775770245192,-500.0,0.00019452,18]
[420200434,1775770245206,-500.0,0.00019452,18]
[420200435,1775770245226,-500.0,0.00019452,18]
[420200436,1775770245238,-500.0,0.00019452,18]
[420200437,1775770245262,-500.0,0.00019452,18]
[420200438,1775770245282,-500.0,0.00019452,18]
[420200439,1775770245292,-401.24901341,0.00019452,18]
[420200440,1775770245324,-500.0,0.00019452,18]
[420200441,1775770245345,-500.0,0.00019452,18]
[420200442,1775770245355,-500.0,0.00019452,18]
[420200443,1775770245365,-500.0,0.00019452,18]
[420200444,1775770245375,-500.0,0.00019452,18]
[420200445,1775770245385,-500.0,0.00019452,18]
[420200446,1775770245395,-500.0,0.00019452,18]
[420200447,1775770245405,-500.0,0.00019452,18]
[420200448,1775770245415,-985.21,0.00019452,18]
[420200449,1775770245428,-500.0,0.00019452,18]
[420200450,1775770245439,-500.0,0.00019452,18]
[420200451,1775770245450,-970.03,0.00019452,18]
[420200452,1775770245464,-599.03,0.00019452,18]
[420200453,1775770245474,-500.0,0.00019452,18]
[420200454,1775770245484,-591.3,0.00019452,18]
[420200456,1775770245503,-500.0,0.00019452,18]
[420200460,1775770245840,-500.0,0.00019452,18]
[420200462,1775770245866,-500.0,0.00019452,18]
[420200465,1775770245880,-500.0,0.00019452,18]
[420200467,1775770245899,-924.01,0.00019452,18]
[420200469,1775770245909,-500.0,0.00019452,18]
[420200472,1775770245922,-500.0,0.00019452,10]
[420200474,1775770245936,-500.0,0.00019452,18]
[420200475,1775770245963,-500.0,0.00019452,18]
[420200477,1775770245976,-649.88,0.00019452,18]
[420200478,1775770246001,-500.0,0.00019452,18]
[420200480,1775770246035,-567.06,0.00019452,18]
[420200481,1775770246068,-500.0,0.00019452,18]
[420200483,1775770246098,-748.65,0.00019452,18]
[420200484,1775770246129,-500.0,0.00019452,18]
[420200485,1775770246157,-635.58,0.00019452,18]
[420200486,1775770246181,-500.0,0.00019452,18]
[420200487,1775770246202,-500.0,0.00019452,18]
[420200488,1775770246212,-500.0,0.00019452,18]
[420200489,1775770246227,-500.0,0.00019452,18]
[420200491,1775770246250,-960.01,0.00019452,18]
[420200492,1775770246259,-500.0,0.00019452,18]
[420200493,1775770246269,-500.0,0.00019452,18]
[420200494,1775770246299,-607.23,0.00019452,18]
[420200495,1775770246332,-500.0,0.00019452,18]
[420200497,1775770246354,-500.0,0.00019452,18]
[420200498,1775770246363,-974.07,0.00019452,18]
[420200499,1775770246377,-500.0,0.00019452,18]
[420200500,1775770246392,-1388.06,0.00019452,18]
[420200501,1775770246418,-500.0,0.00019452,18]
[420200502,1775770246427,-873.7,0.00019452,18]
[420200503,1775770246439,-500.0,0.00019452,18]
[420200504,1775770246448,-732.26,0.00019452,18]
[420200505,1775770246457,-500.0,0.00019452,18]
[420200506,1775770246466,-1881.8,0.00019452,18]
[420200507,1775770246477,-500.0,0.00019452,18]
[420200508,1775770246486,-500.0,0.00019452,18]
[420200509,1775770246495,-500.0,0.00019452,18]
[420200510,1775770246505,-1451.31,0.00019452,18]
[420200511,1775770246515,-500.0,0.00019452,18]
[420200512,1775770246524,-2518.85,0.00019452,18]
[420200513,1775770246534,-500.0,0.00019452,18]
[420200514,1775770246543,-564.98,0.00019452,18]
[420200515,1775770246552,-505.46,0.00019452,18]
[420200516,1775770246562,-512.02,0.00019452,18]
[420200517,1775770246571,-500.0,0.00019452,18]
[420200518,1775770246581,-500.0,0.00019452,18]
[420200519,1775770246590,-500.0,0.00019452,18]
[420200520,1775770246604,-500.0,0.00019452,18]
[420200521,1775770246614,-500.0,0.00019452,18]
[420200522,1775770246623,-500.0,0.00019452,18]
[420200523,1775770246633,-969.23,0.00019452,18]
[420200524,1775770246654,-500.0,0.00019452,18]
[420200525,1775770246680,-368.50247222,0.00019452,18]
[420200526,1775770246690,-500.0,0.00019452,18]
[420200527,1775770246699,-1815.3,0.00019452,18]
[420200528,1775770246719,-887.81,0.00019452,18]
[420200529,1775770246737,-500.0,0.00019452,18]
[420200530,1775770246746,-1988.8,0.00019452,18]
[420200531,1775770246758,-3094.25,0.00019452,18]
[420200532,1775770246779,-3186.71,0.00019452,18]
[420200533,1775770246804,-500.0,0.00019452,18]
[420200534,1775770246814,-230.15728182,0.00019452,18]
[420200535,1775770246826,-500.0,0.00019452,18]
[420200536,1775770246843,-500.0,0.00019452,18]
[420200537,1775770246862,-681.33,0.00019452,18]
[420200538,1775770246872,-663.41,0.00019452,18]
[420200539,1775770246888,-500.0,0.00019452,18]
[420200540,1775770246897,-500.0,0.00019452,18]
[420200541,1775770246906,-500.0,0.00019452,18]
[420200542,1775770246928,-500.0,0.00019452,18]
[420200543,1775770246937,-500.0,0.00019452,18]
[420200544,1775770246951,-2960.77,0.00019452,18]
[420200545,1775770246964,-577.86088023,0.00019452,11]
[420200546,1775770246974,-500.0,0.00019452,18]
[420200547,1775770247003,-669.25,0.00019452,18]
[420200548,1775770247022,-2548.12,0.00019452,18]
[420200549,1775770247031,-500.0,0.00019452,18]
[420200550,1775770247041,-360.40601754,0.00019452,18]
[420200551,1775770247050,-1260.46,0.00019452,18]
[420200552,1775770247068,-500.0,0.00019452,18]
[420200553,1775770247088,-2533.61,0.00019452,18]
[420200554,1775770247097,-846.82,0.00019452,18]
[420200555,1775770247116,-500.0,0.00019452,18]
[420200556,1775770247126,-7986.36,0.00019452,18]
[420200557,1775770247137,-267.29108948,0.00019452,18]
[420200558,1775770247152,-500.0,0.00019452,18]
[420200559,1775770247163,-500.0,0.00019452,18]
[420200560,1775770247195,-500.0,0.00019452,18]
[420200561,1775770247205,-1490.96,0.00019452,18]
[420200562,1775770247233,-500.0,0.00019452,18]
[420200563,1775770247263,-2331.33,0.00019452,18]
[420200564,1775770247286,-500.0,0.00019452,18]
[420200565,1775770247296,-630.91,0.00019452,18]
[420200566,1775770247307,-500.0,0.00019452,18]
[420200567,1775770247330,-500.0,0.00019452,18]
[420200568,1775770247355,-1538.91,0.00019452,18]
[420200569,1775770247381,-500.0,0.00019452,18]
[420200570,1775770247391,-7095.08,0.00019452,18]
[420200571,1775770247412,-500.0,0.00019452,18]
[420200572,1775770247421,-500.0,0.00019452,18]
[420200573,1775770247443,-2312.54,0.00019452,18]
[420200574,1775770247453,-205.13396154,0.00019452,18]
[420200575,1775770247465,-500.0,0.00019452,18]
[420200576,1775770247475,-2827.84,0.00019452,18]
[420200577,1775770247484,-500.0,0.00019452,18]
[420200578,1775770247493,-500.0,0.00019452,18]
[420200579,1775770247508,-500.0,0.00019452,18]
[420200580,1775770247518,-500.0,0.00019452,18]
[420200581,1775770247527,-500.0,0.00019452,18]
[420200582,1775770247541,-500.0,0.00019452,2]
[420200583,1775770247550,-500.0,0.00019452,18]
[420200584,1775770247559,-500.0,0.00019452,18]
[420200585,1775770247571,-774.91,0.00019452,18]
[420200586,1775770247580,-908.58,0.00019452,18]
[420200587,1775770247589,-2430.17,0.00019452,18]
[420200588,1775770247606,-500.0,0.00019452,18]
[420200589,1775770247615,-603.93,0.00019452,18]
[420200590,1775770247624,-500.0,0.00019452,18]
[420200591,1775770247633,-2939.37,0.00019452,18]
[420200592,1775770247665,-500.0,0.00019452,18]
[420200593,1775770247680,-500.0,0.00019452,18]
[420200594,1775770247690,-500.0,0.00019452,18]
[420200595,1775770247702,-500.0,0.00019452,18]
[420200596,1775770247714,-970.61,0.00019452,18]
[420200597,1775770247738,-2182.08,0.00019452,18]
[420200598,1775770247768,-500.0,0.00019452,18]
[420200599,1775770247790,-3110.56,0.00019452,18]
[420200600,1775770247821,-500.0,0.00019452,18]
[420200601,1775770247831,-500.0,0.00019452,18]
[420200602,1775770247840,-2440.37,0.00019452,18]
[420200603,1775770247849,-500.0,0.00019452,18]
[420200604,1775770247858,-634.47,0.00019452,18]
[420200605,1775770247871,-500.0,0.00019452,18]
[420200606,1775770247880,-559.26,0.00019452,18]
[420200607,1775770247889,-2637.48,0.00019452,18]
[420200608,1775770247898,-500.0,0.00019452,18]
[420200609,1775770247915,-836.31,0.00019452,18]
[420200610,1775770247926,-2173.5,0.00019452,18]
[420200611,1775770247935,-933.45,0.00019452,18]
[420200612,1775770247958,-500.0,0.00019452,18]
[420200613,1775770247968,-500.0,0.00019452,18]
[420200614,1775770247977,-500.0,0.00019452,2]
[420200615,1775770247986,-587.2,0.00019452,18]
[420200616,1775770247995,-812.18,0.00019452,18]
[420200617,1775770248009,-500.0,0.00019452,18]
[420200618,1775770248018,-414.91683373,0.00019452,18]
[420200619,1775770248028,-500.0,0.00019452,18]
[420200620,1775770248049,-765.25,0.00019452,2]
[420200621,1775770248060,-500.0,0.00019473,2]
[420200622,1775770248091,-502.71554405,0.00019473,2]
[420200623,1775770248104,-500.0,0.00019473,2]
[420200624,1775770248118,-151.0,0.000195,2]
[420200625,1775770248127,-600.0,0.00019561,2]
[420200626,1775770248144,-151.0,0.000196,2]
[420200627,1775770248154,-296.0,0.000196,2]
[420200628,1775770248163,-363.0,0.00019632,2]
[420200629,1775770248178,-2230.315306,0.00019696,2]
[420200630,1775770248188,-231.0,0.000197,2]
[420200631,1775770248197,-151.0,0.000197,2]
[420200632,1775770248216,-500.0,0.00019726,18]
[420200633,1775770248225,-500.0,0.00019726,18]
[420200634,1775770248239,-500.0,0.00019726,18]
[420200635,1775770248254,-500.0,0.00019726,18]
[420200636,1775770248300,-500.0,0.00019726,18]
[420200637,1775770248330,-500.0,0.00019726,18]
[420200638,1775770248345,-500.0,0.00019726,18]
[420200639,1775770248403,-878.52,0.00019726,18]
[420200640,1775770248433,-500.0,0.00019726,18]
[420200641,1775770248443,-574.77,0.00019726,18]
[420200642,1775770248470,-500.0,0.00019726,18]
[420200643,1775770248481,-563.09,0.00019726,18]
[420200644,1775770248500,-500.0,0.00019726,18]
[420200646,1775770248510,-500.0,0.00019726,18]
[420200647,1775770248525,-500.0,0.00019726,18]
[420200648,1775770248536,-500.0,0.00019726,18]
[420200649,1775770248563,-579.45684423,0.00019726,18]
[420200650,1775770248572,-500.0,0.00019726,18]
[420200651,1775770248584,-500.0,0.00019726,18]
[420200652,1775770248599,-546.12,0.00019726,18]
[420200653,1775770248619,-500.0,0.00019726,18]
[420200654,1775770248630,-500.0,0.00019726,18]
[420200655,1775770248651,-500.0,0.00019726,18]
[420200656,1775770248665,-500.0,0.00019726,18]
[420200657,1775770248685,-500.0,0.00019726,18]
[420200658,1775770248695,-500.0,0.00019726,18]
[420200659,1775770248715,-996.65,0.00019726,18]
[420200660,1775770248729,-229.25936243,0.00019726,18]
[420200661,1775770248757,-631.41797126,0.00019726,18]
[420200662,1775770248767,-500.0,0.00019726,18]
[420200663,1775770248780,-500.0,0.00019726,18]
[420200664,1775770248795,-500.0,0.00019726,18]
[420200665,1775770248817,-500.0,0.00019726,18]
[420200666,1775770248826,-500.0,0.00019726,18]
[420200667,1775770248845,-500.0,0.00019726,18]
[420200668,1775770248854,-1881.67,0.00019726,18]
[420200669,1775770248883,-500.0,0.00019726,18]
[420200670,1775770248892,-722.33,0.00019726,18]
[420200671,1775770248913,-500.0,0.00019726,18]
[420200672,1775770248928,-1289.64,0.00019726,18]
[420200673,1775770248960,-515.08476401,0.00019726,18]
[420200674,1775770248972,-575.05154677,0.00019726,18]
[420200675,1775770248984,-500.0,0.00019726,18]
[420200676,1775770249015,-569.16,0.00019726,18]
[420200677,1775770249025,-1517.21,0.00019726,18]
[420200678,1775770249045,-547.77,0.00019726,18]
[420200679,1775770249055,-500.0,0.00019726,7]
[420200680,1775770249085,-500.0,0.00019726,18]
[420200681,1775770249096,-1727.32,0.00019726,18]
[420200682,1775770249115,-500.0,0.00019726,18]
[420200683,1775770249125,-500.0,0.00019726,18]
[420200684,1775770249135,-619.16,0.00019726,18]
[420200685,1775770249144,-500.0,0.00019726,18]
[420200686,1775770249157,-664.09,0.00019726,18]
[420200687,1775770249166,-559.65,0.00019726,18]
[420200688,1775770249176,-1035.57,0.00019726,18]
[420200689,1775770249187,-795.69,0.00019726,18]